[Event "Titled Tuesday Blitz June 6 Early 2023"]
[White "Skiadopoulos, Nikolaos"]
[Black "Nikulina, Alena"]
[WhiteFideId "4200772"]
[BlackFideId "4172051"]
[WhiteElo "2022"]
[BlackElo "1608"]
[Result "0-1"]
[Round "5"]
[TimeControl "180+2"]
[Date "2023.06.06"]
[WhiteClock "0:00:02"]
[BlackClock "0:00:16"]
[Board "190"]

1. e4 {[%clk 0:02:59]}  c5 {[%clk 0:01:54]} 2. b4 {[%clk 0:02:58]}  e5 {[%clk 0:01:50]} 3. Nf3 {[%clk 0:02:55]}  Qc7 {[%clk 0:01:46]} 4. Nc3 {[%clk 0:02:49]}  Nf6 {[%clk 0:01:39]} 5. b5 {[%clk 0:02:43]}  d6 {[%clk 0:01:34]} 6. Bc4 {[%clk 0:02:41]}  Be7 {[%clk 0:01:32]} 7. h3 {[%clk 0:02:38]}  O-O {[%clk 0:01:31]} 8. O-O {[%clk 0:02:37]}  a6 {[%clk 0:01:29]} 9. bxa6 {[%clk 0:02:30]}  Nxa6 {[%clk 0:01:28]} 10. d3 {[%clk 0:02:22]}  Bd7 {[%clk 0:01:20]} 11. Bg5 {[%clk 0:02:20]}  Be6 {[%clk 0:01:09]} 12. Nd5 {[%clk 0:02:06]}  Bxd5 {[%clk 0:01:01]} 13. exd5 {[%clk 0:02:05]}  h6 {[%clk 0:00:46]} 14. Bh4 {[%clk 0:01:53]}  Nb4 {[%clk 0:00:41]} 15. c3 {[%clk 0:01:49]}  Nbxd5 {[%clk 0:00:40]} 16. Bxf6 {[%clk 0:01:19]}  Nxf6 {[%clk 0:00:40]} 17. Re1 {[%clk 0:01:16]}  d5 {[%clk 0:00:38]} 18. Bb3 {[%clk 0:01:15]}  Bd6 {[%clk 0:00:38]} 19. Nh4 {[%clk 0:01:12]}  Qd7 {[%clk 0:00:29]} 20. g4 {[%clk 0:01:07]}  g6 {[%clk 0:00:28]} 21. Qd2 {[%clk 0:01:05]}  Kg7 {[%clk 0:00:28]} 22. f3 {[%clk 0:00:33]}  b5 {[%clk 0:00:26]} 23. c4 {[%clk 0:00:29]}  bxc4 {[%clk 0:00:26]} 24. dxc4 {[%clk 0:00:27]}  d4 {[%clk 0:00:26]} 25. Kh1 {[%clk 0:00:21]}  Rfe8 {[%clk 0:00:26]} 26. Rg1 {[%clk 0:00:16]}  e4 {[%clk 0:00:26]} 27. f4 {[%clk 0:00:13]}  e3 {[%clk 0:00:26]} 28. Qh2 {[%clk 0:00:12]}  Ne4 {[%clk 0:00:23]} 29. Raf1 {[%clk 0:00:09]}  Nf2+ {[%clk 0:00:22]} 30. Rxf2 {[%clk 0:00:08]}  exf2 {[%clk 0:00:22]} 31. Qxf2 {[%clk 0:00:08]}  Re4 {[%clk 0:00:22]} 32. Qf3 {[%clk 0:00:07]}  Rae8 {[%clk 0:00:19]} 33. Nf5+ {[%clk 0:00:02]}  Kh7 {[%clk 0:00:16]} 0-1


[Site "https://www.chess.com"]

[Event "Titled Tuesday Blitz June 6 Early 2023"]
[White "Nihal Sarin"]
[Black "Duda, Jan-Krzysztof"]
[WhiteFideId "25092340"]
[BlackFideId "1170546"]
[WhiteElo "2689"]
[BlackElo "2783"]
[Result "1-0"]
[Round "6"]
[TimeControl "180+2"]
[Date "2023.06.06"]
[WhiteClock "0:00:05"]
[BlackClock "0:00:02"]
[Board "1"]

1. e4 {[%clk 0:03:00]}  e5 {[%clk 0:02:58]} 2. Nf3 {[%clk 0:03:00]}  Nc6 {[%clk 0:02:59]} 3. Bb5 {[%clk 0:03:01]}  Nf6 {[%clk 0:02:59]} 4. O-O {[%clk 0:03:00]}  Nxe4 {[%clk 0:02:59]} 5. Re1 {[%clk 0:03:01]}  Nd6 {[%clk 0:02:59]} 6. a4 {[%clk 0:03:02]}  e4 {[%clk 0:02:58]} 7. Nc3 {[%clk 0:02:58]}  Be7 {[%clk 0:02:58]} 8. Nxe4 {[%clk 0:02:58]}  Nxe4 {[%clk 0:02:58]} 9. Rxe4 {[%clk 0:02:59]}  a6 {[%clk 0:02:53]} 10. Bf1 {[%clk 0:02:59]}  d5 {[%clk 0:02:54]} 11. Re1 {[%clk 0:02:59]}  d4 {[%clk 0:02:54]} 12. Bd3 {[%clk 0:02:59]}  Be6 {[%clk 0:02:53]} 13. Rxe6 {[%clk 0:02:51]}  fxe6 {[%clk 0:02:53]} 14. Be4 {[%clk 0:02:52]}  Qd7 {[%clk 0:02:48]} 15. d3 {[%clk 0:02:51]}  O-O {[%clk 0:02:45]} 16. Qe2 {[%clk 0:02:49]}  h6 {[%clk 0:02:38]} 17. Bd2 {[%clk 0:02:43]}  Rf6 {[%clk 0:02:38]} 18. h3 {[%clk 0:02:35]}  Raf8 {[%clk 0:02:37]} 19. Rf1 {[%clk 0:02:35]}  Bd6 {[%clk 0:02:17]} 20. b3 {[%clk 0:02:23]}  Bf4 {[%clk 0:02:09]} 21. Be1 {[%clk 0:02:15]}  e5 {[%clk 0:01:59]} 22. h4 {[%clk 0:01:46]}  Qg4 {[%clk 0:01:39]} 23. g3 {[%clk 0:01:39]}  Qh3 {[%clk 0:01:19]} 24. Nh2 {[%clk 0:01:15]}  Qd7 {[%clk 0:00:21]} 25. gxf4 {[%clk 0:01:04]}  Rxf4 {[%clk 0:00:22]} 26. f3 {[%clk 0:01:04]}  Nd8 {[%clk 0:00:21]} 27. Bg3 {[%clk 0:01:02]}  Ne6 {[%clk 0:00:20]} 28. Ng4 {[%clk 0:00:59]}  Qd6 {[%clk 0:00:18]} 29. Nxe5 {[%clk 0:00:59]}  R8f6 {[%clk 0:00:12]} 30. Kg2 {[%clk 0:00:38]}  Rxh4 {[%clk 0:00:07]} 31. Ng6 {[%clk 0:00:34]}  Rxg6 {[%clk 0:00:03]} 32. Bxg6 {[%clk 0:00:35]}  Nf4+ {[%clk 0:00:03]} 33. Bxf4 {[%clk 0:00:36]}  Rxf4 {[%clk 0:00:03]} 34. Qe8+ {[%clk 0:00:30]}  Rf8 {[%clk 0:00:03]} 35. Bf7+ {[%clk 0:00:22]}  Kh8 {[%clk 0:00:03]} 36. Qe6 {[%clk 0:00:22]}  Qc5 {[%clk 0:00:03]} 37. Bg6 {[%clk 0:00:11]}  Qxc2+ {[%clk 0:00:02]} 38. Rf2 {[%clk 0:00:12]}  Qc1 {[%clk 0:00:03]} 39. f4 {[%clk 0:00:07]}  c6 {[%clk 0:00:02]} 40. Be4 {[%clk 0:00:07]}  Qe3 {[%clk 0:00:01]} 41. Qg6 {[%clk 0:00:07]}  Kg8 {[%clk 0:00:01]} 42. f5 {[%clk 0:00:05]}  Rf6 {[%clk 0:00:02]} 43. Qg3 {[%clk 0:00:05]} 1-0


[Site "https://www.chess.com"]

[Event "Titled Tuesday Blitz June 6 Early 2023"]
[White "Martinez Alcantara, Jose Eduardo"]
[Black "Sanal, Vahap"]
[WhiteFideId "3805662"]
[BlackFideId "6300545"]
[WhiteElo "2711"]
[BlackElo "2606"]
[Result "1-0"]
[Round "6"]
[TimeControl "180+2"]
[Date "2023.06.06"]
[WhiteClock "0:00:06"]
[BlackClock "0:00:04"]
[Board "3"]

1. e4 {[%clk 0:03:00]}  e5 {[%clk 0:02:59]} 2. Nf3 {[%clk 0:03:01]}  Nc6 {[%clk 0:03:00]} 3. Bb5 {[%clk 0:03:02]}  a6 {[%clk 0:03:00]} 4. Ba4 {[%clk 0:03:02]}  Nf6 {[%clk 0:03:00]} 5. d3 {[%clk 0:03:02]}  b5 {[%clk 0:02:59]} 6. Bb3 {[%clk 0:03:03]}  Bc5 {[%clk 0:03:00]} 7. c3 {[%clk 0:03:03]}  d6 {[%clk 0:02:58]} 8. Bg5 {[%clk 0:03:04]}  h6 {[%clk 0:02:58]} 9. Bh4 {[%clk 0:03:04]}  Bb6 {[%clk 0:02:49]} 10. Nbd2 {[%clk 0:03:03]}  Ne7 {[%clk 0:02:47]} 11. Bxf6 {[%clk 0:02:53]}  gxf6 {[%clk 0:02:47]} 12. Qe2 {[%clk 0:02:48]}  Ng6 {[%clk 0:02:44]} 13. g3 {[%clk 0:02:48]}  h5 {[%clk 0:02:44]} 14. d4 {[%clk 0:02:45]}  Qe7 {[%clk 0:02:31]} 15. O-O-O {[%clk 0:02:40]}  Bd7 {[%clk 0:02:26]} 16. Nf1 {[%clk 0:02:33]}  O-O-O {[%clk 0:02:01]} 17. Ne3 {[%clk 0:02:31]}  c6 {[%clk 0:02:01]} 18. Nf5 {[%clk 0:02:09]}  Bxf5 {[%clk 0:01:58]} 19. exf5 {[%clk 0:02:10]}  Nf8 {[%clk 0:01:59]} 20. Rhe1 {[%clk 0:02:11]}  Nd7 {[%clk 0:01:57]} 21. Kb1 {[%clk 0:02:10]}  Kc7 {[%clk 0:01:57]} 22. h4 {[%clk 0:02:05]}  d5 {[%clk 0:01:45]} 23. dxe5 {[%clk 0:01:59]}  fxe5 {[%clk 0:01:44]} 24. Nxe5 {[%clk 0:01:52]}  Nxe5 {[%clk 0:01:45]} 25. f4 {[%clk 0:01:43]}  Rdg8 {[%clk 0:01:30]} 26. Qh2 {[%clk 0:01:16]}  Qf6 {[%clk 0:01:10]} 27. Rxe5 {[%clk 0:01:14]}  Bc5 {[%clk 0:01:07]} 28. Bc2 {[%clk 0:01:11]}  Bd6 {[%clk 0:01:08]} 29. Re3 {[%clk 0:01:10]}  Re8 {[%clk 0:01:07]} 30. Rde1 {[%clk 0:01:08]}  Rb8 {[%clk 0:01:07]} 31. Qe2 {[%clk 0:01:06]}  b4 {[%clk 0:00:59]} 32. c4 {[%clk 0:01:05]}  d4 {[%clk 0:00:49]} 33. Re4 {[%clk 0:01:04]}  a5 {[%clk 0:00:41]} 34. Qf3 {[%clk 0:01:02]}  Kb6 {[%clk 0:00:36]} 35. Ba4 {[%clk 0:00:58]}  Rbd8 {[%clk 0:00:33]} 36. Bc2 {[%clk 0:00:28]}  Rhg8 {[%clk 0:00:34]} 37. Bd3 {[%clk 0:00:23]}  Qg7 {[%clk 0:00:34]} 38. Rg1 {[%clk 0:00:23]}  Qh6 {[%clk 0:00:32]} 39. c5+ {[%clk 0:00:21]}  Bxc5 {[%clk 0:00:32]} 40. Ree1 {[%clk 0:00:20]}  Rd5 {[%clk 0:00:31]} 41. Be4 {[%clk 0:00:20]}  Rd6 {[%clk 0:00:32]} 42. Bd3 {[%clk 0:00:20]}  Rgd8 {[%clk 0:00:28]} 43. Re5 {[%clk 0:00:20]}  Rd5 {[%clk 0:00:28]} 44. Rc1 {[%clk 0:00:21]}  Rxe5 {[%clk 0:00:27]} 45. fxe5 {[%clk 0:00:22]}  Qe3 {[%clk 0:00:25]} 46. Qd1 {[%clk 0:00:12]}  Qxe5 {[%clk 0:00:24]} 47. Qc2 {[%clk 0:00:11]}  Qd5 {[%clk 0:00:12]} 48. Re1 {[%clk 0:00:11]}  Qd6 {[%clk 0:00:12]} 49. Qc4 {[%clk 0:00:10]}  Kc7 {[%clk 0:00:12]} 50. Qxf7+ {[%clk 0:00:09]}  Rd7 {[%clk 0:00:13]} 51. Qg6 {[%clk 0:00:10]}  Qd5 {[%clk 0:00:11]} 52. f6 {[%clk 0:00:10]}  Rd6 {[%clk 0:00:11]} 53. Qg5 {[%clk 0:00:08]}  Qf3 {[%clk 0:00:10]} 54. Qg7+ {[%clk 0:00:04]}  Kb6 {[%clk 0:00:10]} 55. Qg6 {[%clk 0:00:05]}  Rxf6 {[%clk 0:00:10]} 56. Qe4 {[%clk 0:00:05]}  Qxg3 {[%clk 0:00:09]} 57. Rd1 {[%clk 0:00:06]}  Qe3 {[%clk 0:00:08]} 58. Qh7 {[%clk 0:00:05]}  Rf2 {[%clk 0:00:08]} 59. Qh8 {[%clk 0:00:03]}  Qf4 {[%clk 0:00:08]} 60. Qd8+ {[%clk 0:00:03]}  Qc7 {[%clk 0:00:09]} 61. Qg5 {[%clk 0:00:03]}  a4 {[%clk 0:00:09]} 62. Qxh5 {[%clk 0:00:03]}  a3 {[%clk 0:00:10]} 63. bxa3 {[%clk 0:00:04]}  bxa3 {[%clk 0:00:11]} 64. Ka1 {[%clk 0:00:04]}  Bb4 {[%clk 0:00:11]} 65. Rb1 {[%clk 0:00:04]}  Qd6 {[%clk 0:00:11]} 66. Qe8 {[%clk 0:00:03]}  Rb2 {[%clk 0:00:12]} 67. Rxb2 {[%clk 0:00:03]}  axb2+ {[%clk 0:00:13]} 68. Kxb2 {[%clk 0:00:04]}  Ba3+ {[%clk 0:00:13]} 69. Kc2 {[%clk 0:00:04]}  Qc5+ {[%clk 0:00:13]} 70. Kd1 {[%clk 0:00:05]}  Qd6 {[%clk 0:00:11]} 71. Qa8 {[%clk 0:00:03]}  Bc5 {[%clk 0:00:10]} 72. Qa6+ {[%clk 0:00:04]}  Kc7 {[%clk 0:00:10]} 73. Qa5+ {[%clk 0:00:04]}  Bb6 {[%clk 0:00:11]} 74. Qg5 {[%clk 0:00:05]}  Qh2 {[%clk 0:00:11]} 75. Qg7+ {[%clk 0:00:05]}  Kb8 {[%clk 0:00:11]} 76. Qf8+ {[%clk 0:00:04]}  Ka7 {[%clk 0:00:11]} 77. Qe7+ {[%clk 0:00:05]}  Bc7 {[%clk 0:00:10]} 78. Qc5+ {[%clk 0:00:05]}  Kb7 {[%clk 0:00:11]} 79. Qb4+ {[%clk 0:00:04]}  Bb6 {[%clk 0:00:11]} 80. Qe7+ {[%clk 0:00:04]}  Bc7 {[%clk 0:00:12]} 81. a4 {[%clk 0:00:05]}  Qg1+ {[%clk 0:00:10]} 82. Kc2 {[%clk 0:00:05]}  Qg2+ {[%clk 0:00:10]} 83. Kb3 {[%clk 0:00:05]}  Qd5+ {[%clk 0:00:11]} 84. Kc2 {[%clk 0:00:06]}  Qa2+ {[%clk 0:00:11]} 85. Kc1 {[%clk 0:00:05]}  Qxa4 {[%clk 0:00:09]} 86. h5 {[%clk 0:00:04]}  Qa1+ {[%clk 0:00:10]} 87. Kd2 {[%clk 0:00:04]}  Qb2+ {[%clk 0:00:10]} 88. Kd1 {[%clk 0:00:05]}  Qb3+ {[%clk 0:00:10]} 89. Ke2 {[%clk 0:00:04]}  Qa2+ {[%clk 0:00:09]} 90. Kd1 {[%clk 0:00:05]}  Qd5 {[%clk 0:00:08]} 91. Qe2 {[%clk 0:00:03]}  Ba5 {[%clk 0:00:05]} 92. h6 {[%clk 0:00:03]}  Qh1+ {[%clk 0:00:05]} 93. Kc2 {[%clk 0:00:03]}  Qxh6 {[%clk 0:00:06]} 94. Qe7+ {[%clk 0:00:03]}  Bc7 {[%clk 0:00:04]} 95. Qb4+ {[%clk 0:00:04]}  Bb6 {[%clk 0:00:04]} 96. Qe7+ {[%clk 0:00:04]}  Bc7 {[%clk 0:00:05]} 97. Qb4+ {[%clk 0:00:04]}  Kc8 {[%clk 0:00:04]} 98. Qc4 {[%clk 0:00:05]}  Qd6 {[%clk 0:00:04]} 99. Bf5+ {[%clk 0:00:04]}  Kb7 {[%clk 0:00:04]} 100. Bd3 {[%clk 0:00:04]}  Qa3 {[%clk 0:00:04]} 101. Be4 {[%clk 0:00:04]}  Qa7 {[%clk 0:00:03]} 102. Qxc6+ {[%clk 0:00:04]}  Kc8 {[%clk 0:00:03]} 103. Bf5+ {[%clk 0:00:02]}  Kb8 {[%clk 0:00:03]} 104. Qe8+ {[%clk 0:00:03]}  Kb7 {[%clk 0:00:04]} 105. Be4+ {[%clk 0:00:03]}  Ka6 {[%clk 0:00:04]} 106. Bd3+ {[%clk 0:00:04]}  Kb7 {[%clk 0:00:03]} 107. Be4+ {[%clk 0:00:05]}  Ka6 {[%clk 0:00:03]} 108. Qa4+ {[%clk 0:00:05]}  Kb6 {[%clk 0:00:03]} 109. Qb4+ {[%clk 0:00:06]}  Ka6 {[%clk 0:00:04]} 110. Bd3# {[%clk 0:00:06]} 1-0


[Site "https://www.chess.com"]

[Event "Titled Tuesday Blitz June 6 Early 2023"]
[White "Hakobyan, Aram"]
[Black "Pranesh M"]
[WhiteFideId "13306677"]
[BlackFideId "35028600"]
[WhiteElo "2584"]
[BlackElo "2437"]
[Result "0-1"]
[Round "6"]
[TimeControl "180+2"]
[Date "2023.06.06"]
[WhiteClock "0:00:02"]
[BlackClock "0:00:19"]
[Board "4"]

1. d4 {[%clk 0:03:00]}  d5 {[%clk 0:03:00]} 2. c4 {[%clk 0:03:01]}  c6 {[%clk 0:03:00]} 3. Nf3 {[%clk 0:02:58]}  e6 {[%clk 0:03:00]} 4. e3 {[%clk 0:02:54]}  Nf6 {[%clk 0:03:01]} 5. Nc3 {[%clk 0:02:54]}  Nbd7 {[%clk 0:02:59]} 6. Qc2 {[%clk 0:02:54]}  Bd6 {[%clk 0:02:59]} 7. g4 {[%clk 0:02:54]}  Nxg4 {[%clk 0:02:59]} 8. Rg1 {[%clk 0:02:54]}  Nxh2 {[%clk 0:02:57]} 9. Nxh2 {[%clk 0:02:54]}  Bxh2 {[%clk 0:02:58]} 10. Rxg7 {[%clk 0:02:53]}  Qf6 {[%clk 0:02:59]} 11. Rxh7 {[%clk 0:02:47]}  Nf8 {[%clk 0:02:42]} 12. Rxh8 {[%clk 0:02:45]}  Qxh8 {[%clk 0:02:43]} 13. b3 {[%clk 0:02:37]}  Bd6 {[%clk 0:02:30]} 14. Bb2 {[%clk 0:02:34]}  Bd7 {[%clk 0:02:30]} 15. O-O-O {[%clk 0:02:33]}  Ng6 {[%clk 0:02:18]} 16. e4 {[%clk 0:02:32]}  dxc4 {[%clk 0:02:14]} 17. Bxc4 {[%clk 0:02:32]}  Bf4+ {[%clk 0:02:10]} 18. Kb1 {[%clk 0:02:31]}  O-O-O {[%clk 0:02:11]} 19. e5 {[%clk 0:02:21]}  Ne7 {[%clk 0:02:07]} 20. Ne4 {[%clk 0:02:17]}  Kb8 {[%clk 0:02:07]} 21. Nd6 {[%clk 0:02:00]}  Qh5 {[%clk 0:02:05]} 22. Be2 {[%clk 0:01:58]}  Qh4 {[%clk 0:01:48]} 23. Bf3 {[%clk 0:01:44]}  Rf8 {[%clk 0:01:27]} 24. Ne4 {[%clk 0:01:43]}  Qh3 {[%clk 0:01:21]} 25. Qe2 {[%clk 0:01:37]}  Nd5 {[%clk 0:01:12]} 26. Ka1 {[%clk 0:01:13]}  Qf5 {[%clk 0:01:03]} 27. Nc5 {[%clk 0:01:00]}  Bc8 {[%clk 0:01:01]} 28. Be4 {[%clk 0:00:59]}  Qg5 {[%clk 0:00:59]} 29. Bxd5 {[%clk 0:00:36]}  exd5 {[%clk 0:00:58]} 30. Qc2 {[%clk 0:00:31]}  Re8 {[%clk 0:00:52]} 31. Qh7 {[%clk 0:00:23]}  Qf5 {[%clk 0:00:50]} 32. Qxf5 {[%clk 0:00:20]}  Bxf5 {[%clk 0:00:51]} 33. Bc1 {[%clk 0:00:21]}  Bxc1 {[%clk 0:00:48]} 34. Rxc1 {[%clk 0:00:22]}  Rg8 {[%clk 0:00:48]} 35. Rc3 {[%clk 0:00:16]}  b6 {[%clk 0:00:40]} 36. Na4 {[%clk 0:00:12]}  Rg4 {[%clk 0:00:34]} 37. Rf3 {[%clk 0:00:11]}  Be6 {[%clk 0:00:33]} 38. Rd3 {[%clk 0:00:11]}  Rf4 {[%clk 0:00:34]} 39. f3 {[%clk 0:00:11]}  Bf5 {[%clk 0:00:34]} 40. Rd2 {[%clk 0:00:09]}  Rxf3 {[%clk 0:00:34]} 41. Kb2 {[%clk 0:00:10]}  Kc7 {[%clk 0:00:32]} 42. Nc3 {[%clk 0:00:09]}  Kd7 {[%clk 0:00:32]} 43. b4 {[%clk 0:00:09]}  a6 {[%clk 0:00:31]} 44. a4 {[%clk 0:00:08]}  b5 {[%clk 0:00:31]} 45. axb5 {[%clk 0:00:08]}  axb5 {[%clk 0:00:32]} 46. Kb3 {[%clk 0:00:07]}  Ke6 {[%clk 0:00:33]} 47. Kb2 {[%clk 0:00:02]}  Bd3 {[%clk 0:00:31]} 48. Rd1 {[%clk 0:00:02]}  Kf5 {[%clk 0:00:31]} 49. Rd2 {[%clk 0:00:02]}  Kf4 {[%clk 0:00:31]} 50. Rh2 {[%clk 0:00:02]}  Ke3 {[%clk 0:00:30]} 51. Rh4 {[%clk 0:00:01]}  Rf2+ {[%clk 0:00:29]} 52. Ka3 {[%clk 0:00:02]}  Rc2 {[%clk 0:00:27]} 53. Rh3+ {[%clk 0:00:02]}  Kd2 {[%clk 0:00:26]} 54. Nb1+ {[%clk 0:00:02]}  Ke2 {[%clk 0:00:25]} 55. Rh2+ {[%clk 0:00:02]}  Ke3 {[%clk 0:00:26]} 56. Rh3+ {[%clk 0:00:02]}  Kxd4 {[%clk 0:00:26]} 57. e6 {[%clk 0:00:01]}  fxe6 {[%clk 0:00:26]} 58. Rh4+ {[%clk 0:00:02]}  Be4 {[%clk 0:00:26]} 59. Kb3 {[%clk 0:00:02]}  Rf2 {[%clk 0:00:23]} 60. Na3 {[%clk 0:00:02]}  e5 {[%clk 0:00:22]} 61. Rh6 {[%clk 0:00:02]}  Rf3+ {[%clk 0:00:21]} 62. Kb2 {[%clk 0:00:02]}  Rf2+ {[%clk 0:00:21]} 63. Kb3 {[%clk 0:00:02]}  Bd3 {[%clk 0:00:20]} 64. Rxc6 {[%clk 0:00:03]}  e4 {[%clk 0:00:20]} 65. Rc5 {[%clk 0:00:03]}  e3 {[%clk 0:00:19]} 66. Rc3 {[%clk 0:00:02]}  e2 {[%clk 0:00:19]} 67. Rc1 {[%clk 0:00:02]}  Rf1 {[%clk 0:00:19]} 0-1


[Site "https://www.chess.com"]

[Event "Titled Tuesday Blitz June 6 Early 2023"]
[White "Dragnev, Valentin"]
[Black "Dubov, Daniil"]
[WhiteFideId "1634852"]
[BlackFideId "24126055"]
[WhiteElo "2487"]
[BlackElo "2793"]
[Result "0-1"]
[Round "6"]
[TimeControl "180+2"]
[Date "2023.06.06"]
[WhiteClock "0:00:01"]
[BlackClock "0:00:07"]
[Board "8"]

1. e4 {[%clk 0:03:00]}  c5 {[%clk 0:02:58]} 2. Nc3 {[%clk 0:03:01]}  e6 {[%clk 0:02:58]} 3. Nf3 {[%clk 0:03:00]}  a6 {[%clk 0:02:58]} 4. g3 {[%clk 0:02:58]}  Nc6 {[%clk 0:02:57]} 5. Bg2 {[%clk 0:02:56]}  d6 {[%clk 0:02:56]} 6. d4 {[%clk 0:02:56]}  cxd4 {[%clk 0:02:57]} 7. Nxd4 {[%clk 0:02:57]}  Bd7 {[%clk 0:02:57]} 8. O-O {[%clk 0:02:57]}  Be7 {[%clk 0:02:56]} 9. Nxc6 {[%clk 0:02:55]}  Bxc6 {[%clk 0:02:56]} 10. Qg4 {[%clk 0:02:54]}  h5 {[%clk 0:02:55]} 11. Qe2 {[%clk 0:02:50]}  h4 {[%clk 0:02:55]} 12. Bf4 {[%clk 0:02:47]}  Qb6 {[%clk 0:02:33]} 13. Rad1 {[%clk 0:02:43]}  Qxb2 {[%clk 0:02:30]} 14. Rd3 {[%clk 0:02:43]}  Qb4 {[%clk 0:02:21]} 15. Rb1 {[%clk 0:02:42]}  Qa5 {[%clk 0:02:21]} 16. e5 {[%clk 0:02:15]}  d5 {[%clk 0:02:13]} 17. Qg4 {[%clk 0:02:05]}  g6 {[%clk 0:02:02]} 18. Ne2 {[%clk 0:01:22]}  b5 {[%clk 0:01:44]} 19. Nd4 {[%clk 0:01:21]}  Bd7 {[%clk 0:01:44]} 20. Bxd5 {[%clk 0:01:15]}  exd5 {[%clk 0:01:08]} 21. e6 {[%clk 0:01:16]}  Bxe6 {[%clk 0:01:09]} 22. Nxe6 {[%clk 0:01:15]}  Nf6 {[%clk 0:01:09]} 23. Ng7+ {[%clk 0:00:40]}  Kf8 {[%clk 0:01:05]} 24. Ne6+ {[%clk 0:00:41]}  Kg8 {[%clk 0:00:51]} 25. Qe2 {[%clk 0:00:41]}  hxg3 {[%clk 0:00:46]} 26. hxg3 {[%clk 0:00:36]}  Rc8 {[%clk 0:00:33]} 27. Ng5 {[%clk 0:00:31]}  Qd8 {[%clk 0:00:23]} 28. Re1 {[%clk 0:00:26]}  Bb4 {[%clk 0:00:22]} 29. Red1 {[%clk 0:00:17]}  Bc5 {[%clk 0:00:20]} 30. Be5 {[%clk 0:00:13]}  Rh5 {[%clk 0:00:19]} 31. Nf3 {[%clk 0:00:09]}  Qb6 {[%clk 0:00:16]} 32. Bxf6 {[%clk 0:00:06]}  Qxf6 {[%clk 0:00:16]} 33. Rxd5 {[%clk 0:00:07]}  Rxd5 {[%clk 0:00:16]} 34. Rxd5 {[%clk 0:00:07]}  Qa1+ {[%clk 0:00:15]} 35. Kg2 {[%clk 0:00:06]}  Qxa2 {[%clk 0:00:16]} 36. Qe4 {[%clk 0:00:05]}  Qc4 {[%clk 0:00:13]} 37. Qe5 {[%clk 0:00:03]}  Bf8 {[%clk 0:00:12]} 38. Ng5 {[%clk 0:00:03]}  Bg7 {[%clk 0:00:11]} 39. Qd6 {[%clk 0:00:03]}  Qc6 {[%clk 0:00:08]} 40. Ne4 {[%clk 0:00:03]}  Qxd6 {[%clk 0:00:08]} 41. Rxd6 {[%clk 0:00:04]}  Ra8 {[%clk 0:00:08]} 42. Nc5 {[%clk 0:00:04]}  a5 {[%clk 0:00:09]} 43. Rb6 {[%clk 0:00:04]}  a4 {[%clk 0:00:09]} 44. Rxb5 {[%clk 0:00:04]}  a3 {[%clk 0:00:09]} 45. Nb3 {[%clk 0:00:04]}  a2 {[%clk 0:00:09]} 46. c4 {[%clk 0:00:05]}  Ra3 {[%clk 0:00:08]} 47. c5 {[%clk 0:00:02]}  Rxb3 {[%clk 0:00:08]} 48. Rxb3 {[%clk 0:00:03]}  a1=Q {[%clk 0:00:08]} 49. c6 {[%clk 0:00:04]}  Qc1 {[%clk 0:00:07]} 50. Rb6 {[%clk 0:00:03]}  Qc5 {[%clk 0:00:07]} 51. Ra6 {[%clk 0:00:02]}  Be5 {[%clk 0:00:07]} 52. Ra8+ {[%clk 0:00:01]}  Kg7 {[%clk 0:00:07]} 53. Rc8 {[%clk 0:00:01]}  Qd5+ {[%clk 0:00:07]} 0-1


[Site "https://www.chess.com"]

[Event "Titled Tuesday Blitz June 6 Early 2023"]
[White "Korobov, Anton"]
[Black "Harutjunyan, Gevorg"]
[WhiteFideId "14105730"]
[BlackFideId "13300873"]
[WhiteElo "2638"]
[BlackElo "2474"]
[Result "0-1"]
[Round "6"]
[TimeControl "180+2"]
[Date "2023.06.06"]
[WhiteClock "0:01:51"]
[BlackClock "0:01:39"]
[Board "11"]

1. d4 {[%clk 0:03:00]}  Nf6 {[%clk 0:02:59]} 2. c4 {[%clk 0:03:00]}  g6 {[%clk 0:02:59]} 3. Nc3 {[%clk 0:03:00]}  Bg7 {[%clk 0:03:00]} 4. e4 {[%clk 0:03:00]}  d6 {[%clk 0:03:01]} 5. Nf3 {[%clk 0:02:59]}  O-O {[%clk 0:03:01]} 6. Be2 {[%clk 0:03:00]}  e5 {[%clk 0:03:01]} 7. O-O {[%clk 0:03:00]}  exd4 {[%clk 0:03:00]} 8. Nxd4 {[%clk 0:03:00]}  Re8 {[%clk 0:03:01]} 9. f3 {[%clk 0:03:00]}  Nc6 {[%clk 0:03:00]} 10. Be3 {[%clk 0:02:59]}  Nh5 {[%clk 0:02:59]} 11. Re1 {[%clk 0:02:59]}  Nf4 {[%clk 0:02:47]} 12. Bf1 {[%clk 0:02:58]}  Nxd4 {[%clk 0:02:41]} 13. Bxd4 {[%clk 0:02:58]}  Qg5 {[%clk 0:02:41]} 14. Kh1 {[%clk 0:02:56]}  Bxd4 {[%clk 0:02:32]} 15. Qxd4 {[%clk 0:02:56]}  Qe5 {[%clk 0:02:31]} 16. Qd2 {[%clk 0:02:54]}  Ne6 {[%clk 0:02:25]} 17. Rad1 {[%clk 0:02:49]}  b6 {[%clk 0:02:25]} 18. Nd5 {[%clk 0:02:42]}  Bb7 {[%clk 0:02:23]} 19. f4 {[%clk 0:02:42]}  Qg7 {[%clk 0:02:22]} 20. f5 {[%clk 0:02:28]}  Bxd5 {[%clk 0:02:11]} 21. exd5 {[%clk 0:02:20]}  Nc5 {[%clk 0:02:07]} 22. Qf4 {[%clk 0:01:53]}  Qxb2 {[%clk 0:01:44]} 23. h4 {[%clk 0:01:51]}  Qf6 {[%clk 0:01:39]} 0-1


[Site "https://www.chess.com"]